fUSD/lending_fUSD_20250514
["ID","MTS","AMOUNT","RATE_DAILY","PERIOD"]
[360995217,1747187447197,-1193.51,0.00010958,2]
[360995218,1747187447206,-400.0,0.00010958,2]
[360995219,1747187447215,-400.0,0.00010958,2]
[360995220,1747187447226,-400.0,0.00010958,2]
[360995221,1747187447235,-400.0,0.00010958,2]
[360995222,1747187447245,-400.0,0.00010958,2]
[360995223,1747187447254,-314.12606974,0.00010958,2]
[360995224,1747187447263,-400.0,0.00010958,2]
[360995225,1747187447274,-690.8,0.00010958,2]
[360995226,1747187447283,-400.0,0.00010958,2]
[360995227,1747187447293,-400.0,0.00010958,2]
[360995228,1747187447302,-400.0,0.00010958,2]
[360995229,1747187447311,-736.93,0.00010958,2]
[360995230,1747187447321,-549.5,0.00010958,2]
[360995231,1747187447330,-1174.38,0.00010958,2]
[360995232,1747187447340,-1003.81,0.00010958,2]
[360995233,1747187447349,-400.0,0.00010958,2]
[360995234,1747187447359,-697.93,0.00010958,2]
[360995235,1747187447368,-400.0,0.00010958,2]
[360995236,1747187447379,-400.0,0.00010958,2]
[360995238,1747187447390,-400.0,0.00010958,2]
[360995240,1747187447399,-400.0,0.00010958,2]
[360995242,1747187447409,-400.0,0.00010958,2]
[360995244,1747187447418,-400.0,0.00010958,2]
[360995246,1747187447428,-400.0,0.00010958,2]
[360995248,1747187447437,-400.0,0.00010958,2]
[360995250,1747187447447,-467.60816923,0.00010958,2]
[360995252,1747187447456,-330.72812075,0.00010958,2]
[360995253,1747187447465,-400.0,0.00010958,2]
[360995254,1747187447475,-400.0,0.00010958,2]
[360995255,1747187447484,-400.0,0.00010958,2]
[360995256,1747187447493,-400.0,0.00010958,2]
[360995257,1747187447503,-2313.68,0.00010958,2]
[360995258,1747187447512,-416.37,0.00010958,2]
[360995259,1747187447523,-411.90074237,0.00010958,2]
[360995261,1747187447532,-5173.33,0.00010958,2]
[360995262,1747187447541,-400.0,0.00010958,2]
[360995264,1747187447550,-500.0,0.00010958,2]
[360995266,1747187447559,-1413.21,0.00010958,2]
[360995268,1747187447569,-3233.28,0.00010958,2]
[360995269,1747187447578,-400.0,0.00010958,2]
[360995270,1747187447587,-2579.42,0.00010958,2]
[360995271,1747187447596,-417.82163637,0.00010958,2]
[360995272,1747187447605,-400.0,0.00010958,2]
[360995273,1747187447614,-593.69,0.00010958,2]
[360995274,1747187447624,-409.65559747,0.00010958,2]
[360995275,1747187447634,-1021.67,0.00010958,2]
[360995276,1747187447644,-730.87,0.00010958,2]
[360995277,1747187447654,-406.35275855,0.00010958,2]
[360995278,1747187447663,-414.9925408,0.00010958,2]
[360995279,1747187447673,-723.72,0.00010958,2]
[360995280,1747187447685,-440.34,0.00010958,2]
[360995281,1747187447698,-400.0,0.00010958,2]
[360995282,1747187447708,-400.0,0.00010958,2]
[360995283,1747187447717,-489.01,0.00010958,2]
[360995284,1747187447726,-540.08,0.00010958,2]
[360995285,1747187447735,-400.0,0.00010958,2]
[360995286,1747187447745,-445.27,0.00010958,2]
[360995287,1747187447754,-2017.4,0.00010958,2]
[360995288,1747187447764,-431.67,0.00010958,2]
[360995289,1747187447776,-861.77,0.00010958,2]
[360995290,1747187447786,-1510.06,0.00010958,2]
[360995291,1747187447797,-5079.37,0.00010958,2]
[360995292,1747187447807,-3971.65,0.00010958,2]
[360995293,1747187447816,-250.64306722,0.00010958,2]
[360995294,1747187447825,-400.0,0.00010958,2]
[360995295,1747187447834,-400.0,0.00010958,2]
[360995296,1747187447844,-400.0,0.00010958,2]
[360995297,1747187447855,-400.0,0.00010958,2]
[360995298,1747187447865,-3408.44,0.00010958,2]
[360995299,1747187447874,-400.0,0.00010958,2]
[360995300,1747187447884,-400.0,0.00010958,2]
[360995301,1747187447894,-400.0,0.00010958,2]
[360995302,1747187447905,-400.0,0.00010958,2]
[360995303,1747187447915,-400.0,0.00010958,2]
[360995304,1747187447925,-468.2,0.00010958,2]
[360995305,1747187447934,-440.51592078,0.00010958,2]
[360995306,1747187447944,-7573.99,0.00010958,2]
[360995307,1747187447954,-467.53,0.00010958,2]
[360995308,1747187447963,-400.0,0.00010958,2]
[360995309,1747187447973,-178.07151841,0.00010958,2]
[360995310,1747187447982,-238.53229773,0.00010958,2]
[360995311,1747187447993,-409.28647315,0.00010958,2]
[360995312,1747187448003,-1394.7,0.00010958,2]
[360995313,1747187448013,-632.64,0.00010958,2]
[360995314,1747187448029,-446.18,0.00010958,2]
[360995315,1747187448040,-560.21,0.00010958,2]
[360995316,1747187448051,-409.08059142,0.00010958,2]
[360995317,1747187448062,-289.95675908,0.00010958,2]
[360995318,1747187448073,-769.56,0.00010958,2]
[360995319,1747187448084,-400.0,0.00010958,2]
[360995320,1747187448094,-1000.0,0.00010958,2]
[360995321,1747187448105,-416.37695214,0.00010958,2]
[360995322,1747187448115,-400.0,0.00010958,2]
[360995323,1747187448126,-400.0,0.00010958,2]
[360995324,1747187448136,-400.0,0.00010958,2]
[360995325,1747187448147,-524.92,0.00010958,2]
[360995326,1747187448157,-400.0,0.00010958,2]
[360995327,1747187448168,-1232.11,0.00010958,2]
[360995328,1747187448178,-10158.9,0.00010958,2]
[360995329,1747187448188,-400.0,0.00010958,2]
[360995330,1747187448198,-400.0,0.00010958,2]
[360995331,1747187448208,-506.47920963,0.00010958,2]
[360995332,1747187448218,-400.0,0.00010958,2]
[360995333,1747187448228,-400.0,0.00010958,2]
[360995334,1747187448238,-453.17,0.00010958,2]
[360995335,1747187448248,-400.94587183,0.00010958,2]
[360995336,1747187448258,-400.0,0.00010958,2]
[360995337,1747187448271,-400.0,0.00010958,2]
[360995338,1747187448282,-3107.55,0.00010958,2]
[360995339,1747187448293,-400.0,0.00010958,2]
[360995340,1747187448302,-400.0,0.00010958,2]
[360995341,1747187448312,-795.79,0.00010958,2]
[360995342,1747187448322,-5317.17,0.00010958,2]
[360995343,1747187448332,-400.0,0.00010958,2]
[360995344,1747187448343,-400.0,0.00010958,2]
[360995345,1747187448353,-401.75386184,0.00010958,2]
[360995346,1747187448362,-500.0,0.00010959,2]
[360995347,1747187448373,-200.0,0.00010959,2]
[360995348,1747187448383,-500.0,0.00010959,2]
[360995349,1747187448394,-500.0,0.00010959,2]
[360995350,1747187448405,-500.0,0.00010959,2]
[360995351,1747187448415,-500.0,0.00010959,2]
[360995352,1747187448428,-500.0,0.00010959,2]
[360995353,1747187448438,-500.0,0.00010959,2]
[360995354,1747187448449,-500.0,0.00010959,2]
[360995355,1747187448459,-500.0,0.00010959,2]
[360995356,1747187448469,-500.0,0.00010959,2]
[360995357,1747187448479,-496.58324431,0.00010959,2]
[360995358,1747187448490,-500.0,0.00010959,2]
[360995359,1747187448500,-1234.083,0.00010963,2]
[360995360,1747187448510,-503.0,0.00010963,2]
[360995361,1747187448675,-200.0,0.00010964,2]
[360995362,1747187448686,-179.134258,0.00010969,2]
[360995363,1747187448696,-500.0,0.00010973,2]
[360995364,1747187448707,-501.53009174,0.00010973,2]
[360995365,1747187448717,-500.0,0.00010973,2]
[360995366,1747187448727,-500.0,0.00010973,2]
[360995367,1747187448737,-500.0,0.00010973,2]
[360995368,1747187448746,-500.0,0.00010973,2]
[360995369,1747187448756,-500.0,0.00010973,2]
[360995370,1747187448765,-500.4441465,0.00010973,2]
[360995371,1747187448778,-500.0,0.00010973,2]
[360995372,1747187448788,-500.0,0.00010973,2]
[360995373,1747187448797,-501.58855612,0.00010973,2]
[360995374,1747187448808,-502.26197616,0.00010973,2]
[360995375,1747187448817,-200.0,0.00010982,2]
[360995376,1747187448827,-161.0,0.00010986,2]
[360995377,1747187448837,-500.0,0.00010992,2]
[360995378,1747187448850,-500.0,0.00010992,2]
[360995379,1747187448859,-471.37025828,0.00010992,2]
[360995380,1747187448869,-452.01783252,0.00010993,2]
[360995381,1747187448878,-400.0,0.00010993,2]
[360995382,1747187448887,-400.0,0.00010993,2]
[360995383,1747187448897,-400.0,0.00010993,2]
[360995384,1747187448907,-400.0,0.00010993,2]
[360995385,1747187448918,-400.0,0.00010993,2]
[360995386,1747187448931,-400.77697481,0.00010993,2]
[360995387,1747187448940,-500.0,0.00010993,2]
[360995388,1747187448951,-502.04487385,0.00010993,2]
[360995389,1747187448960,-9092.74,0.00010993,2]
[360995390,1747187448970,-427.38,0.00010993,2]
[360995391,1747187448979,-2029.89,0.00010993,2]
[360995392,1747187448991,-611.02,0.00010993,2]
[360995393,1747187449001,-400.0,0.00010993,2]
[360995394,1747187449011,-1000.0,0.00010999,2]
[360995395,1747187449022,-1000.0,0.00010999,2]
[360995396,1747187449032,-500.0,0.00010999,2]
[360995397,1747187449042,-511.80883241,0.00010999,2]
[360995398,1747187449052,-34386.56,0.00010999,2]
[360995399,1747187449062,-300.0,0.00010999,2]
[360995400,1747187449072,-300.0,0.00010999,2]
[360995401,1747187449081,-256.62845276,0.00011,2]
[360995402,1747187449090,-560098.26000315,0.00011,2]
[360995403,1747187449099,-897050.4626074,0.00011,2]
[360995404,1747187449588,-9303.7276782,0.00011,2]
[360995405,1747187449600,-41303.73110074,0.00011,2]
[360995406,1747187449613,-2239.99555988,0.00011,2]
[360995407,1747187449624,-333.81892786,0.00011,2]
[360995408,1747187449674,-952.53113558,0.00011,2]
[360995409,1747187449684,-520.0,0.00011,2]
[360995410,1747187451018,-777.82,0.00010958,2]
[360995411,1747187451030,-9640.68,0.00011,2]
[360995412,1747187451050,-555.5128255,0.00011,2]
[360995413,1747187451076,-400.0,0.00010958,2]
[360995414,1747187451086,-8782.66681138,0.00011,2]
[360995415,1747187451097,-7565.56847393,0.00011,2]
[360995419,1747187733271,1017.26,8.219e-05,2]
[360995421,1747188010076,257.96031146,0.000254,120]
[360995423,1747188118145,150.0,9.946e-05,7]
[360995428,1747188364718,6017.515543,0.00025,60]
[360995429,1747188452149,-205.65259513,9.957e-05,2]
[360995433,1747188506561,-152.0,9.931e-05,2]
[360995434,1747188508052,-50.56,9.931e-05,2]
[360995445,1747188601791,-215.14513151,9.95e-05,2]
[360995461,1747188632055,-2698.68148269,9.95e-05,2]
[360995462,1747188632065,-44.34740487,9.957e-05,2]
[360995463,1747188632075,-202.56,9.981e-05,2]
[360995464,1747188632085,-2201.57,0.0001,2]
[360995465,1747188632095,-450.0,0.0001,2]
[360995466,1747188632104,-300.0,0.00010019,2]
[360995467,1747188632114,-1200.0,0.0001002,2]
[360995468,1747188632123,-500.0,0.0001002,2]
[360995469,1747188632132,-319.62111244,0.0001002,2]
[360995470,1747188632346,-180.37888756,0.0001002,2]
[360995471,1747188632355,-500.0,0.0001002,2]
[360995472,1747188632365,-500.0,0.0001002,2]
[360995473,1747188632375,-376.49120737,0.0001002,2]
[360995474,1747188632385,-500.0,0.0001002,2]
[360995475,1747188632394,-500.0,0.0001002,2]
[360995476,1747188632404,-500.0,0.0001002,2]
[360995477,1747188632413,-500.0,0.0001002,2]
[360995478,1747188632422,-500.0,0.0001002,2]
[360995479,1747188632432,-500.0,0.0001002,2]
[360995480,1747188632441,-500.0,0.0001002,2]
[360995481,1747188632451,-500.0,0.0001002,2]
[360995482,1747188632461,-500.0,0.0001002,2]
[360995483,1747188632470,-500.0,0.0001002,2]
[360995485,1747188632480,-500.0,0.0001002,2]
[360995488,1747188632490,-200.0,0.00010023,2]
[360995491,1747188632500,-1000.0,0.00010028,2]
[360995494,1747188632510,-200.0,0.00010042,2]
[360995497,1747188632520,-949.12990507,0.000101,2]
[360995500,1747188632534,-1013.90007998,0.000101,2]
[360995503,1747188632546,-238.54001495,0.000101,2]
[360995506,1747188632556,-15537.82,0.00010111,2]
[360995509,1747188632565,-2201.57,0.000102,2]
[360995512,1747188632576,-544.54,0.00010206,2]
[360995515,1747188632593,-207.4,0.00010449,2]
[360995518,1747188632606,-150.0,0.00010478,2]
[360995520,1747188632617,-1017.26,0.00010479,2]
[360995522,1747188632628,-318.29039314,0.00010857,2]
[360995525,1747188632637,-156.08412992,0.00010858,2]
[360995528,1747188632647,-3346.40651661,0.00010858,2]
[360995535,1747188632675,-407.0,0.00010858,2]
[360995540,1747188632694,-2211.39474624,0.00010858,2]
[360995543,1747188632705,-1118.69906685,0.00010858,2]
[360995546,1747188632716,-3289.3190566,0.00010858,2]
[360995551,1747188632734,-2760.94600868,0.00010858,2]
[360995553,1747188632745,-434.94,0.00010858,2]
[360995555,1747188632757,-1992.36993761,0.00010858,2]
[360995557,1747188632768,-14543.66666741,0.00010858,2]
[360995559,1747188632778,-1000.0,0.00010858,2]
[360995561,1747188632792,-270.6177,0.00010858,2]
[360995563,1747188632801,-163.37815308,0.000109,2]
[360995565,1747188632812,-186.91964216,0.000109,2]
[360995567,1747188632822,-170.82634913,0.000109,2]
[360995569,1747188632832,-1748.62654824,0.000109,2]
[360995571,1747188632842,-6822.0,0.00010915,2]
[360995573,1747188632852,-1080.674,0.00010915,2]
[360995575,1747188632862,-210.418,0.00010915,2]
[360995577,1747188632871,-245.999983,0.00010944,2]
[360995579,1747188632880,-200.0,0.00010945,2]
[360995581,1747188632890,-167.75,0.00010948,2]
[360995583,1747188632900,-151.0,0.00010951,2]
[360995585,1747188632909,-152.71917662,0.00010951,2]
[360995587,1747188632919,-693.06095034,0.00010951,2]
[360995589,1747188632928,-287.61899177,0.00010951,2]
[360995591,1747188632937,-200.0,0.00010953,2]
[360995593,1747188632946,-217.727155,0.00010958,2]
[360995595,1747188632955,-179.134259,0.00010958,2]
[360995597,1747188632964,-400.0,0.00010958,2]
[360995599,1747188632973,-400.0,0.00010958,2]
[360995601,1747188632983,-400.0,0.00010958,2]
[360995603,1747188632993,-572.43,0.00010958,2]
[360995605,1747188633003,-400.0,0.00010958,2]
[360995607,1747188633013,-330.22495595,0.00010958,2]
[360995609,1747188633026,-69.77504405,0.00010958,2]
[360995611,1747188633041,-400.0,0.00010958,2]
[360995613,1747188633051,-400.0,0.00010958,2]
[360995615,1747188633062,-400.0,0.00010958,2]
[360995617,1747188633072,-81.56929053,0.00010958,2]
[360995619,1747188633085,-318.43070947,0.00010958,2]
[360995621,1747188633095,-400.0,0.00010958,2]
[360995622,1747188633106,-241.26603397,0.00010958,2]
[360995627,1747188633147,-158.73396603,0.00010958,2]
[360995629,1747188633158,-449.68,0.00010958,2]
[360995631,1747188633172,-85.60075515,0.00010958,2]
[360995633,1747188633184,-314.39924485,0.00010958,2]
[360995635,1747188633195,-216.10075515,0.00010958,2]
[360995637,1747188633208,-183.89924485,0.00010958,2]
[360995639,1747188633218,-406.10076515,0.00010958,2]
[360995641,1747188633230,-437.26923485,0.00010958,2]
[360995643,1747188633240,-403.38287746,0.00010958,2]
[360995645,1747188633251,-500.0,0.00010958,2]
[360995647,1747188633262,-400.0,0.00010958,2]
[360995649,1747188633272,-400.0,0.00010958,2]
[360995651,1747188633287,-400.0,0.00010958,2]
[360995653,1747188633296,-400.0,0.00010958,2]
[360995655,1747188633307,-134.34788769,0.00010958,2]
[360995658,1747188633322,-338.29211231,0.00010958,2]
[360995660,1747188633332,-338.43049314,0.00010958,2]
[360995662,1747188633341,-500.0,0.00010958,2]
[360995664,1747188633351,-473.14,0.00010958,2]
[360995665,1747188633360,-1049.82,0.00010958,2]
[360995667,1747188633370,-400.0,0.00010958,2]
[360995669,1747188633380,-400.0,0.00010958,2]
[360995671,1747188633390,-400.0,0.00010958,2]
[360995673,1747188633399,-599.89,0.00010958,2]
[360995675,1747188633409,-400.0,0.00010958,2]
[360995677,1747188633418,-331.11051329,0.00010958,2]
[360995684,1747188633476,-68.88948671,0.00010958,2]
[360995686,1747188633485,-329.11051329,0.00010958,2]
[360995688,1747188633497,-1022.58948671,0.00010958,2]
[360995690,1747188633506,-224.52843457,0.00010958,2]
[360995692,1747188633518,-175.47156543,0.00010958,2]
[360995694,1747188633527,-400.0,0.00010958,2]
[360995696,1747188633538,-400.0,0.00010958,2]
[360995698,1747188633548,-427.81,0.00010958,2]
[360995700,1747188633557,-401.90190654,0.00010958,2]
[360995702,1747188633567,-400.0,0.00010958,2]
[360995704,1747188633577,-1019.82,0.00010958,2]
[360995706,1747188633586,-400.0,0.00010958,2]
[360995708,1747188633596,-400.0,0.00010958,2]
[360995710,1747188633605,-899.77,0.00010958,2]
[360995712,1747188633614,-400.0,0.00010958,2]
[360995714,1747188633625,-400.0,0.00010958,2]
[360995716,1747188633635,-400.0,0.00010958,2]
[360995718,1747188633646,-318.5874845,0.00010958,2]
[360995720,1747188633655,-400.0,0.00010958,2]
[360995722,1747188633666,-400.0,0.00010958,2]
[360995724,1747188633676,-180.23571413,0.00010958,2]
[360995726,1747188633688,-400.0,0.00010958,2]
[360995728,1747188633699,-406.06804419,0.00010958,2]
[360995730,1747188633710,-400.0,0.00010958,2]
[360995732,1747188633720,-400.0,0.00010958,2]
[360995734,1747188633730,-364.16438309,0.00010958,2]
[360995736,1747188633741,-400.0,0.00010958,2]
[360995738,1747188633753,-400.0,0.00010958,2]
[360995740,1747188633763,-331.15768072,0.00010958,2]
[360995741,1747188633775,-400.0,0.00010958,2]
[360995743,1747188633791,-400.0,0.00010958,2]
[360995745,1747188633803,-400.0,0.00010958,2]
[360995747,1747188633814,-400.0,0.00010958,2]
[360995749,1747188633823,-404.10780718,0.00010958,2]
[360995751,1747188633834,-400.0,0.00010958,2]
[360995753,1747188633845,-400.0,0.00010958,2]
[360995755,1747188633856,-1102.6,0.00010958,2]
[360995756,1747188633867,-402.69606674,0.00010958,2]
[360995758,1747188633878,-400.0,0.00010958,2]
[360995760,1747188633889,-400.0,0.00010958,2]
[360995762,1747188633899,-400.0,0.00010958,2]
[360995764,1747188633911,-400.0,0.00010958,2]
[360995766,1747188633921,-358.0,0.00010958,2]
[360995768,1747188633933,-400.0,0.00010958,2]
[360995770,1747188633943,-400.0,0.00010958,2]
[360995772,1747188633955,-400.0,0.00010958,2]
[360995774,1747188633966,-400.0,0.00010958,2]
[360995776,1747188633979,-670.93,0.00010958,2]
[360995778,1747188633990,-400.0,0.00010958,2]
[360995780,1747188634001,-400.0,0.00010958,2]
[360995782,1747188634013,-400.0,0.00010958,2]
[360995783,1747188634025,-400.0,0.00010958,2]
[360995785,1747188634044,-838.74,0.00010958,2]
[360995787,1747188634056,-400.0,0.00010958,2]
[360995789,1747188634068,-2706.972593,0.00010958,2]
[360995791,1747188634081,-2706.972593,0.00010958,2]
[360995793,1747188634094,-165.628924,0.00010958,2]
[360995795,1747188634106,-2706.972593,0.00010958,2]
[360995797,1747188634118,-165.628924,0.00010958,2]
[360995799,1747188634130,-165.628924,0.00010958,2]
[360995801,1747188634141,-400.0,0.00010958,2]
[360995803,1747188634151,-400.0,0.00010958,2]
[360995805,1747188634163,-513.33126519,0.00010958,2]
[360995807,1747188634176,-438.45903352,0.00010958,2]
[360996145,1747188637807,-879.0,0.00010915,2]
[360996147,1747188637818,-538.56096648,0.00010958,2]
[360996149,1747188637827,-400.0,0.00010958,2]
[360996151,1747188637837,-405.94622774,0.00010958,2]
[360996153,1747188637847,-400.0,0.00010958,2]
[360996155,1747188637858,-400.85408625,0.00010958,2]
[360996157,1747188637868,-400.0,0.00010958,2]
[360996159,1747188637878,-400.0,0.00010958,2]
[360996161,1747188637888,-721.19,0.00010958,2]
[360996163,1747188637898,-1189.75,0.00010958,2]
[360996165,1747188637908,-401.1027459,0.00010958,2]
[360996167,1747188637917,-824.76,0.00010958,2]
[360996169,1747188637927,-400.0,0.00010958,2]
[360996171,1747188637936,-392.3270625,0.00010958,2]
[360996173,1747188637946,-400.0,0.00010958,2]
[360996175,1747188637956,-400.0,0.00010958,2]
[360996177,1747188637966,-400.0,0.00010958,2]
[360996179,1747188637975,-400.0,0.00010958,2]
[360996181,1747188637984,-401.79137443,0.00010958,2]
[360996183,1747188637994,-400.0,0.00010958,2]
[360996185,1747188638003,-400.0,0.00010958,2]
[360996187,1747188638013,-400.0,0.00010958,2]
[360996189,1747188638023,-415.30245002,0.00010958,2]
[360996191,1747188638034,-400.0,0.00010958,2]
[360996193,1747188638047,-594.47,0.00010958,2]
[360996195,1747188638057,-543.34,0.00010958,2]
[360996197,1747188638067,-400.0,0.00010958,2]
[360996199,1747188638076,-243.83352304,0.00010958,2]
[360996201,1747188638089,-156.16647696,0.00010958,2]
[360996203,1747188638099,-400.0,0.00010958,2]
[360996205,1747188638108,-400.0,0.00010958,2]
[360996207,1747188638118,-400.0,0.00010958,2]
[360996209,1747188638129,-417.18778476,0.00010958,2]
[360996211,1747188638138,-400.0,0.00010958,2]
[360996213,1747188638148,-400.0,0.00010958,2]
[360996215,1747188638160,-400.0,0.00010958,2]
[360996217,1747188638173,-400.0,0.00010958,2]
[360996219,1747188638183,-401.78826838,0.00010958,2]
[360996221,1747188638193,-411.76614334,0.00010958,2]
[360996223,1747188638204,-400.0,0.00010958,2]
[360996225,1747188638214,-400.0,0.00010958,2]
[360996227,1747188638223,-400.0,0.00010958,2]
[360996229,1747188638233,-400.0,0.00010958,2]
[360996231,1747188638243,-400.0,0.00010958,2]
[360996233,1747188638254,-485.7085706,0.00010958,2]
[360996235,1747188638265,-400.0,0.00010958,2]
[360996237,1747188638274,-400.0,0.00010958,2]
[360996239,1747188638283,-543.82551327,0.00010958,2]
[360996241,1747188638298,-331.0702857,0.00010958,2]
[360996243,1747188638308,-400.0,0.00010958,2]
[360996245,1747188638318,-514.17,0.00010958,2]
[360996247,1747188638328,-413.42732158,0.00010958,2]
[360996249,1747188638337,-194.89713801,0.00010958,2]
[360996251,1747188638347,-1786.77,0.00010958,2]
[360996253,1747188638357,-434.29,0.00010958,2]
[360996255,1747188638366,-400.0,0.00010958,2]
[360996258,1747188638376,-400.0,0.00010958,2]
[360996260,1747188638386,-1019.7,0.00010958,2]
[360996262,1747188638396,-545.04,0.00010958,2]
[360996264,1747188638406,-400.0,0.00010958,2]
[360996266,1747188638415,-400.0,0.00010958,2]
[360996268,1747188638424,-762.96749741,0.00010958,2]
[360996271,1747188638445,-59.89250259,0.00010958,2]
[360996273,1747188638455,-400.0,0.00010958,2]
[360996275,1747188638464,-400.0,0.00010958,2]
[360996277,1747188638473,-400.0,0.00010958,2]
[360996279,1747188638482,-400.0,0.00010958,2]
[360996281,1747188638493,-400.0,0.00010958,2]
[360996283,1747188638503,-412.94874699,0.00010958,2]
[360996285,1747188638512,-400.0,0.00010958,2]
[360996287,1747188638521,-400.0,0.00010958,2]
[360996289,1747188638531,-1021.85,0.00010958,2]
[360996291,1747188638543,-400.0,0.00010958,2]
[360996293,1747188638552,-400.0,0.00010958,2]
[360996295,1747188638562,-400.0,0.00010958,2]
[360996297,1747188638572,-563.42,0.00010958,2]
[360996299,1747188638582,-400.0,0.00010958,2]
[360996301,1747188638592,-400.0,0.00010958,2]
[360996303,1747188638602,-412.39657556,0.00010958,2]
[360996305,1747188638611,-400.0,0.00010958,2]
[360996307,1747188638620,-400.0,0.00010958,2]
[360996309,1747188638629,-288.69798088,0.00010958,2]
[360996311,1747188638638,-459.34,0.00010958,2]
[360996313,1747188638648,-409.07196987,0.00010958,2]
[360996315,1747188638657,-400.0,0.00010958,2]
[360996317,1747188638667,-400.0,0.00010958,2]
[360996319,1747188638676,-400.0,0.00010958,2]
[360996321,1747188638685,-400.0,0.00010958,2]
[360996323,1747188638694,-402.81149964,0.00010958,2]
[360996325,1747188638703,-400.0,0.00010958,2]
[360996327,1747188638712,-400.0,0.00010958,2]
[360996329,1747188638722,-578.29,0.00010958,2]
[360996330,1747188638731,-304.48356435,0.00010958,2]
[360996332,1747188638740,-400.0,0.00010958,2]
[360996334,1747188638749,-400.0,0.00010958,2]
[360996336,1747188638759,-349.40865968,0.00010958,2]
[360996338,1747188638768,-400.0,0.00010958,2]
[360996340,1747188638777,-458.88,0.00010958,2]
[360996342,1747188638790,-400.0,0.00010958,2]
[360996344,1747188638799,-400.0,0.00010958,2]
[360996346,1747188638809,-400.0,0.00010958,2]
[360996348,1747188638819,-400.0,0.00010958,2]
[360996350,1747188638830,-412.49542699,0.00010958,2]
[360996352,1747188638839,-400.0,0.00010958,2]
[360996354,1747188638848,-1529.04,0.00010958,2]
[360996356,1747188638858,-400.0,0.00010958,2]
[360996358,1747188638867,-415.6,0.00010958,2]
[360996360,1747188638876,-400.0,0.00010958,2]
[360996362,1747188638886,-486.81892599,0.00010958,2]
[360996364,1747188638895,-400.0,0.00010958,2]
[360996366,1747188638905,-400.0,0.00010958,2]
[360996368,1747188638914,-407.05214177,0.00010958,2]
[360996370,1747188638923,-400.0,0.00010958,2]
[360996372,1747188638933,-414.47472273,0.00010958,2]
[360996374,1747188638943,-405.74785778,0.00010958,2]
[360996376,1747188638952,-400.0,0.00010958,2]
[360996378,1747188638961,-412.72196843,0.00010958,2]
[360996380,1747188638971,-400.0,0.00010958,2]
[360996382,1747188638980,-400.0,0.00010958,2]
[360996384,1747188638989,-538.92172383,0.00010958,2]
[360996386,1747188638998,-400.0,0.00010958,2]
[360996388,1747188639008,-484.04126169,0.00010958,2]
[360996390,1747188639016,-408.25629046,0.00010958,2]
[360996392,1747188639026,-400.0,0.00010958,2]
[360996394,1747188639035,-400.0,0.00010958,2]
[360996396,1747188639048,-196.45593313,0.00010958,2]
[360996398,1747188639057,-940.44,0.00010958,2]
[360996400,1747188639066,-409.50969725,0.00010958,2]
[360996402,1747188639076,-400.0,0.00010958,2]
[360996404,1747188639086,-400.0,0.00010958,2]
[360996406,1747188639095,-163.64789021,0.00010958,2]
[360996407,1747188639105,-856.04,0.00010958,2]
[360996408,1747188639114,-400.0,0.00010958,2]
[360996409,1747188639124,-400.0,0.00010958,2]
[360996410,1747188639133,-400.0,0.00010958,2]